bitfinex-derivatives/quotes_BTCF0:USTF0_20250814
["timestamp","ask_amount","ask_price","bid_price","bid_amount"]
[1755168077951,0.21514252,121470.0,121460.0,2.00118279]
[1755168079266,0.26109252,121470.0,121460.0,2.00118279]
[1755168079467,0.26109252,121470.0,121460.0,0.7229263]
[1755168079655,0.65435252,121470.0,121460.0,0.95085279]
[1755168079859,0.74125252,121470.0,121460.0,1.2732763]
[1755168080061,0.76622252,121470.0,121460.0,1.75049279]
[1755168080561,0.70055252,121470.0,121460.0,0.95085279]
[1755168080765,0.76622252,121470.0,121460.0,1.75077279]
[1755168080953,0.62189252,121470.0,121460.0,1.75093279]
[1755168081358,0.65435252,121470.0,121460.0,1.75093279]
[1755168081560,0.76622252,121470.0,121460.0,1.75099991]
[1755168082461,0.76622252,121470.0,121460.0,1.75083991]
[1755168082661,0.76622252,121470.0,121460.0,0.78626391]
[1755168083266,0.76622252,121470.0,121460.0,1.58622391]
[1755168084065,0.76622252,121470.0,121460.0,1.57652391]
[1755168084470,0.76622252,121470.0,121460.0,1.57735391]
[1755168084868,0.76622252,121470.0,121460.0,1.10013742]
[1755168085068,0.76622252,121470.0,121460.0,1.57735391]
[1755168085369,0.76622252,121470.0,121460.0,1.57652391]
[1755168086462,0.40542252,121470.0,121460.0,1.57652391]
[1755168086662,0.76622252,121470.0,121460.0,1.57652391]
[1755168087063,0.40542252,121470.0,121460.0,1.57735391]
[1755168087265,0.76622252,121470.0,121460.0,1.57735391]
[1755168088173,0.31478252,121470.0,121460.0,1.57663391]
[1755168088366,0.29355252,121470.0,121460.0,1.57643391]
[1755168089166,0.62554252,121470.0,121460.0,1.57643391]
[1755168090068,0.67809252,121470.0,121460.0,0.08164712]
[1755168090277,0.84851142,121470.0,121460.0,0.16394282]
[1755168090473,0.63347465,121470.0,121460.0,0.89666874]
[1755168090770,0.84851142,121470.0,121460.0,0.95617874]
[1755168091078,0.84851142,121470.0,121460.0,0.92083874]
[1755168091263,0.63347465,121470.0,121460.0,0.92083874]
[1755168091461,0.84851142,121470.0,121460.0,0.95905874]
[1755168091662,0.84851142,121470.0,121460.0,1.01377874]
[1755168092367,0.84851142,121470.0,121460.0,1.00091282]
[1755168092764,0.63347465,121470.0,121460.0,1.47848931]
[1755168093277,0.70102252,121470.0,121460.0,1.47748931]
[1755168093473,0.65658252,121470.0,121460.0,1.48019931]
[1755168093783,0.65658252,121470.0,121460.0,1.48059931]
[1755168094174,0.65658252,121470.0,121460.0,1.48063931]
[1755168094578,0.65658252,121470.0,121460.0,0.67447931]
[1755168094776,0.65658252,121470.0,121460.0,1.48055931]
[1755168095171,0.65658252,121470.0,121460.0,1.00334282]
[1755168095477,0.76622252,121470.0,121460.0,1.48051931]
[1755168095973,0.76622252,121470.0,121460.0,1.00330282]
[1755168096168,0.76622252,121470.0,121460.0,1.48051931]
[1755168096576,0.76622252,121470.0,121460.0,0.67447931]
[1755168097279,0.76622252,121470.0,121460.0,1.48095931]
[1755168097480,0.76622252,121470.0,121460.0,0.67447931]
[1755168098278,0.76622252,121470.0,121460.0,1.48087931]
[1755168098471,0.76622252,121470.0,121460.0,0.67447931]
[1755168098673,0.10026398,121490.0,121480.0,0.128021]
[1755168098674,0.46295,121490.0,121480.0,0.128021]
[1755168098872,0.44144,121490.0,121480.0,0.67235749]
[1755168099078,0.44144,121490.0,121480.0,1.48179749]
[1755168099382,0.44144,121490.0,121480.0,1.48291749]
[1755168099582,0.44144,121490.0,121480.0,0.67235749]
[1755168099881,0.44448295,121490.0,121480.0,1.48283749]
[1755168100072,0.44448295,121490.0,121480.0,1.49178787]
[1755168100884,0.44448295,121490.0,121480.0,0.67235749]
[1755168101078,0.55412295,121490.0,121480.0,0.67235749]
[1755168101285,0.55412295,121490.0,121480.0,0.195101]
[1755168101478,0.55412295,121490.0,121480.0,0.163291]
[1755168101685,0.55412295,121490.0,121480.0,0.973971]
[1755168101886,0.55412295,121490.0,121480.0,1.005711]
[1755168102282,0.2379678,121470.0,121460.0,0.18576333]
[1755168102594,0.63421075,121470.0,121460.0,0.08236172]
[1755168103292,0.63341075,121470.0,121460.0,0.08236172]
[1755168103475,0.99421075,121470.0,121460.0,0.08236172]
[1755168103783,1.0028619,121470.0,121460.0,0.08236172]
[1755168104782,1.0028619,121470.0,121460.0,0.90132172]
[1755168105187,0.0496,121460.0,121440.0,0.10340161]
[1755168105373,0.99502395,121450.0,121440.0,0.10340161]
[1755168105571,0.2725877,121440.0,121430.0,0.18579191]
[1755168105783,0.6341877,121440.0,121430.0,0.10348161]
[1755168105976,0.63423065,121440.0,121430.0,0.10348161]
[1755168106687,0.63423065,121440.0,121430.0,8e-05]
[1755168106873,0.63423065,121440.0,121430.0,0.0823944]
[1755168107278,0.63423065,121440.0,121430.0,0.00208]
[1755168107878,0.63343065,121440.0,121430.0,0.0843944]
[1755168108178,0.69791761,121440.0,121430.0,0.0843944]
[1755168111480,0.69791761,121440.0,121430.0,0.9076344]
[1755168111680,0.69791761,121440.0,121430.0,0.9428944]
[1755168111988,0.69791761,121440.0,121430.0,0.1439044]
[1755168112177,0.69791761,121440.0,121430.0,0.9988444]
[1755168112376,0.69791761,121440.0,121430.0,0.9986444]
[1755168112582,0.69791761,121440.0,121430.0,0.9669044]
[1755168113691,0.69791761,121440.0,121430.0,0.1756444]
[1755168113890,0.69791761,121440.0,121430.0,1.0202244]
[1755168114490,0.69791761,121440.0,121430.0,0.1971444]
[1755168114689,0.69791761,121440.0,121430.0,1.0202244]
[1755168114890,0.69791761,121440.0,121430.0,1.49594089]
[1755168115085,0.61560991,121440.0,121430.0,1.49594089]
[1755168115892,0.55040991,121440.0,121430.0,1.49684089]
[1755168116091,0.55040991,121440.0,121430.0,1.49764089]
[1755168116882,0.55040991,121440.0,121430.0,0.67600089]
[1755168117083,0.55040991,121440.0,121430.0,1.50000089]
[1755168117684,0.58745991,121440.0,121430.0,1.50000089]
[1755168117991,0.61814991,121440.0,121430.0,0.1970844]
[1755168118189,0.70045751,121440.0,121430.0,0.1085644]
[1755168118496,0.70045751,121440.0,121430.0,0.9663944]
[1755168120486,0.70045751,121440.0,121430.0,1.0169244]
[1755168120696,0.70045751,121440.0,121430.0,1.49414089]
[1755168121797,0.61814991,121440.0,121430.0,0.67202089]
[1755168121989,0.70045771,121440.0,121430.0,1.49558089]
[1755168122185,0.70045771,121440.0,121430.0,0.1948044]
[1755168122389,0.60978771,121440.0,121430.0,1.49498089]
[1755168122589,0.70189771,121440.0,121430.0,1.49506089]
[1755168123297,0.70189771,121440.0,121430.0,1.0178444]
[1755168123497,0.70189771,121440.0,121430.0,1.49502089]
[1755168123792,0.70189771,121440.0,121430.0,0.1645644]
[1755168123992,0.70189771,121440.0,121430.0,0.9075144]
[1755168124196,0.70189771,121440.0,121430.0,0.0843944]
[1755168124388,0.70189771,121440.0,121430.0,0.9425444]
[1755168124592,0.70189771,121440.0,121430.0,0.9668644]
[1755168125094,0.70189771,121440.0,121430.0,0.9079944]
[1755168125492,0.70189771,121440.0,121430.0,0.0843944]
[1755168125996,0.70189771,121440.0,121430.0,0.9088344]
[1755168126292,1.17907125,121440.0,121430.0,0.00208]
[1755168126597,0.70185476,121440.0,121430.0,0.82632]
[1755168127195,0.19255,121400.0,121390.0,0.3293574]
[1755168127390,0.40732295,121400.0,121390.0,1.75043389]
[1755168127591,0.36084295,121400.0,121390.0,0.92423389]
[1755168127899,0.19259295,121400.0,121390.0,0.1646744]
[1755168128100,0.55339295,121400.0,121390.0,0.2785544]
[1755168128301,0.63572785,121400.0,121390.0,1.1074744]
[1755168128497,0.19255,121390.0,121380.0,0.12674472]
[1755168128805,0.44055295,121390.0,121380.0,0.68936538]
[1755168128991,0.63573465,121390.0,121380.0,1.46793538]
[1755168129296,0.63573465,121390.0,121380.0,1.40314538]
[1755168129798,0.63573465,121390.0,121380.0,1.40714538]
[1755168130388,0.55339295,121390.0,121380.0,0.09928889]
[1755168130597,0.63573465,121390.0,121380.0,0.09928889]
[1755168131096,1.11375114,121390.0,121380.0,0.01694039]
[1755168131297,1.11295114,121390.0,121380.0,0.09928889]
[1755168131599,0.63573465,121390.0,121380.0,0.20640889]
[1755168131901,0.63573465,121390.0,121380.0,0.20840889]
[1755168132090,0.63573465,121390.0,121380.0,0.95904889]
[1755168132296,0.63573465,121390.0,121380.0,0.09928889]
[1755168132691,0.63573465,121390.0,121380.0,0.13383889]
[1755168132891,0.63573465,121390.0,121380.0,0.09928889]
[1755168133097,0.63573465,121390.0,121380.0,0.01694039]
[1755168133394,0.1959953,121370.0,121360.0,0.0070432]
[1755168133593,0.1959953,121370.0,121340.0,0.0823753]
[1755168133594,0.07833,121350.0,121340.0,0.2914532]
[1755168133905,0.19255,121340.0,121330.0,0.2436396]
[1755168134213,0.6357256,121340.0,121330.0,1.0323019]
[1755168134394,0.55342409,121340.0,121330.0,0.66871839]
[1755168134702,0.70163086,121340.0,121330.0,0.1962619]
[1755168135310,0.19255,121330.0,121320.0,0.2436546]
[1755168135600,0.6358225,121330.0,121320.0,0.75587109]
[1755168135903,0.6358225,121330.0,121310.0,0.32963168]
[1755168135904,0.082389,121320.0,121310.0,0.32963168]
[1755168136092,0.55335,121320.0,121310.0,0.12677588]
[1755168136296,0.635739,121320.0,121310.0,1.52026237]
[1755168136696,0.55335,121320.0,121310.0,1.04304588]
[1755168136905,0.55335,121320.0,121310.0,0.19156588]
[1755168137101,0.635739,121320.0,121310.0,0.19156588]
[1755168137296,0.48561,121320.0,121310.0,0.64330237]
[1755168137496,0.48561,121320.0,121310.0,1.52964237]
[1755168137497,0.44058058,121320.0,121310.0,1.52964237]
[1755168137695,0.26128087,121340.0,121330.0,0.2000422]
[1755168137696,0.06583157,121340.0,121330.0,0.2000422]
[1755168137901,0.3608,121360.0,121340.0,0.0831697]
[1755168138100,0.3608,121360.0,121350.0,0.64195389]
[1755168138304,0.3608,121360.0,121350.0,1.49767389]
[1755168138500,0.3608,121360.0,121350.0,1.66248189]
[1755168138693,0.47256166,121370.0,121360.0,0.0823619]
[1755168139003,0.50961166,121370.0,121360.0,1.41573839]
[1755168139198,0.54030166,121370.0,121360.0,1.41273839]
[1755168139399,0.50325166,121370.0,121360.0,1.41073839]
[1755168139606,0.11176166,121370.0,121360.0,1.41073839]
[1755168139810,1.90728,121380.0,121360.0,0.72009799]
[1755168140101,0.5562099,121370.0,121350.0,0.1647349]
[1755168140308,0.11422,121360.0,121350.0,0.1647349]
[1755168140513,0.11422,121360.0,121350.0,1.0241349]
[1755168140712,0.04648,121360.0,121350.0,1.0241349]
[1755168141006,0.04648,121360.0,121350.0,1.50135139]
[1755168141400,0.04648,121360.0,121350.0,0.1647349]
[1755168141599,0.04648,121360.0,121350.0,1.0268549]
[1755168141804,0.5720079,121360.0,121350.0,0.47721649]
[1755168142006,0.04648,121360.0,121350.0,0.0823682]
[1755168142202,0.40728,121360.0,121350.0,0.9462482]
[1755168142407,0.44433,121360.0,121350.0,1.42346469]
[1755168142708,0.44433,121360.0,121350.0,0.9462482]
[1755168143009,0.40728,121360.0,121350.0,1.42550469]
[1755168143309,0.04648,121360.0,121350.0,1.42550469]
[1755168143505,0.40728,121360.0,121350.0,0.56158469]
[1755168143710,0.47502,121360.0,121350.0,1.42642469]
[1755168144112,0.557381,121360.0,121350.0,1.42642469]
[1755168144306,0.557381,121360.0,121350.0,0.002]
[1755168144307,0.558011,121360.0,121350.0,0.002]
[1755168144508,0.558011,121360.0,121350.0,0.9490078]
[1755168144704,0.47565,121360.0,121350.0,0.56158429]
[1755168144910,0.40728,121360.0,121350.0,1.42638429]
[1755168145115,0.558011,121360.0,121350.0,0.8668]
[1755168145315,0.558011,121360.0,121350.0,0.86696]
[1755168145506,0.558011,121360.0,121350.0,0.87983896]
[1755168146014,0.558011,121360.0,121350.0,0.96220676]
[1755168146415,0.558011,121360.0,121350.0,1.43942325]
[1755168146718,0.558011,121360.0,121350.0,0.96220676]
[1755168146911,0.558011,121360.0,121350.0,1.43942325]
[1755168147311,0.558011,121360.0,121350.0,0.96220676]
[1755168147515,0.558011,121360.0,121350.0,0.01487896]
[1755168148019,0.558811,121360.0,121350.0,0.01487896]
[1755168148413,0.0823882,121320.0,121310.0,0.24722698]
[1755168148615,0.5115526,121330.0,121320.0,0.0823882]
[1755168148810,0.6763258,121330.0,121320.0,0.9553878]
[1755168149013,0.593939,121330.0,121320.0,1.35021649]
[1755168149319,0.593939,121330.0,121320.0,0.9553878]
[1755168149320,0.47764,121330.0,121320.0,0.9553878]
[1755168149508,0.47764,121330.0,121320.0,1.43260429]
[1755168149707,0.47764,121330.0,121320.0,0.55960429]
[1755168149913,0.04847,121330.0,121320.0,0.72537989]
[1755168150114,0.04847,121330.0,121320.0,1.60033989]
[1755168150314,0.04847,121330.0,121320.0,0.72537989]
[1755168150616,0.04847,121330.0,121320.0,1.60197989]
[1755168150820,0.04847,121330.0,121320.0,1.1247634]
[1755168151020,0.04847,121330.0,121320.0,0.72637989]
[1755168151216,0.528281,121330.0,121320.0,0.9613478]
[1755168151420,0.560021,121330.0,121320.0,1.43856429]
[1755168151812,0.560021,121330.0,121320.0,0.9613478]
[1755168152012,0.560021,121330.0,121320.0,0.56160429]
[1755168152212,0.560021,121330.0,121320.0,1.43928429]
[1755168152413,0.47764,121330.0,121320.0,0.56160429]
[1755168152916,0.47764,121330.0,121320.0,0.0843878]
[1755168153116,0.5600208,121330.0,121320.0,0.002]
[1755168154717,0.5600208,121330.0,121320.0,0.0843878]
[1755168155025,0.5600208,121330.0,121320.0,0.87992]
[1755168155325,0.5600208,121330.0,121310.0,0.55966037]
[1755168155326,0.1992278,121320.0,121310.0,0.55966037]
[1755168155526,0.5600278,121320.0,121310.0,0.55966077]
[1755168155722,0.5600278,121320.0,121310.0,0.08244428]
[1755168156022,0.5600278,121320.0,121310.0,1.43930077]
[1755168156222,0.5600278,121320.0,121310.0,1.35694657]
[1755168156428,0.5600278,121320.0,121310.0,1.35794657]
[1755168156729,0.5600278,121320.0,121310.0,0.56066097]
[1755168156923,0.5600278,121320.0,121310.0,1.44126097]
[1755168157525,0.5600278,121320.0,121310.0,0.00205008]
[1755168158424,0.4459,121320.0,121310.0,0.56166057]
[1755168158732,0.47764,121320.0,121310.0,1.44946057]
[1755168158936,0.5600272,121320.0,121310.0,0.00205008]
[1755168159236,0.5630275,121320.0,121310.0,0.89899215]
[1755168159432,0.5630275,121320.0,121310.0,0.00971215]
[1755168159923,0.5630275,121320.0,121310.0,0.48692864]
[1755168160129,0.6386175,121320.0,121310.0,0.48692864]
[1755168160339,0.6386175,121320.0,121310.0,0.00971215]
[1755168160638,0.6386169,121320.0,121310.0,0.58220418]
[1755168160829,0.46417,121320.0,121310.0,0.99646769]
[1755168161032,0.42917,121330.0,121310.0,0.99646769]
[1755168161033,0.39743,121330.0,121320.0,0.0823869]
[1755168161237,0.49352962,121340.0,121320.0,0.17765174]
[1755168161238,0.511544,121340.0,121320.0,0.17765174]
[1755168161429,0.42917,121340.0,121330.0,0.55959649]
[1755168161624,0.40927,121340.0,121330.0,0.09526194]
[1755168161838,0.40927,121340.0,121330.0,0.57247843]
[1755168162028,0.40927,121340.0,121330.0,1.46627843]
[1755168163734,0.48164,121340.0,121330.0,1.47093792]
[1755168164041,0.48164,121340.0,121330.0,0.09992143]
[1755168164258,0.48164,121340.0,121330.0,0.02254143]
[1755168164259,0.58338035,121340.0,121330.0,0.02254143]
[1755168164539,0.58538035,121340.0,121330.0,0.01288194]
[1755168164840,1.06259684,121340.0,121330.0,0.00320344]
[1755168165037,0.1141267,121320.0,121310.0,0.00012761]
[1755168165232,0.57812206,121320.0,121310.0,0.00978879]
[1755168165436,0.93892206,121320.0,121310.0,0.00978879]
[1755168165633,0.93892206,121320.0,121310.0,0.00012761]
[1755168166339,0.93892206,121320.0,121310.0,0.00112761]
[1755168167833,0.93892206,121320.0,121310.0,0.08352111]
[1755168167834,0.83844,121320.0,121310.0,0.08352111]
[1755168168029,0.85690338,121320.0,121310.0,0.5607376]
[1755168168240,0.49610176,121320.0,121310.0,0.08352111]
[1755168168443,0.49610176,121320.0,121310.0,0.09318192]
[1755168168641,0.04847,121320.0,121310.0,0.57309841]
[1755168168947,0.04847,121320.0,121310.0,1.54954892]
[1755168169332,0.04847,121320.0,121310.0,2.19162941]
[1755168169544,0.44773725,121340.0,121330.0,0.0823799]
[1755168169834,0.44773725,121340.0,121330.0,0.56925637]
[1755168170030,0.40927,121340.0,121330.0,0.09203967]
[1755168170229,0.40927,121360.0,121340.0,0.2506142]
[1755168170535,0.47403653,121370.0,121360.0,0.0850595]
[1755168170837,0.40927,121370.0,121360.0,0.56993321]
[1755168171141,0.40927,121370.0,121360.0,0.09271672]
[1755168171338,0.40927,121370.0,121360.0,1.50677321]
[1755168171536,0.4459,121370.0,121360.0,0.09001672]
[1755168171735,0.47764,121370.0,121360.0,1.0203593]
[1755168172032,0.47764,121370.0,121360.0,0.0823593]
[1755168172439,0.48064,121370.0,121360.0,0.0823593]
[1755168172633,0.11684,121350.0,121340.0,1.1021804]
[1755168172841,0.47764,121350.0,121340.0,0.1647404]
[1755168173140,0.08021,121340.0,121330.0,0.72435529]
[1755168173440,0.0851,121330.0,121320.0,0.247152]
[1755168173638,0.46960348,121330.0,121320.0,0.1724276]
[1755168173850,0.3608,121330.0,121310.0,0.24729941]
[1755168174050,0.07553,121320.0,121310.0,1.10998881]
[1755168174434,0.07553,121320.0,121310.0,1.5872053]
[1755168174639,0.07553,121320.0,121310.0,1.10998881]
[1755168174844,0.07553,121320.0,121310.0,0.17154881]
[1755168175044,0.07553,121320.0,121310.0,1.5882853]
[1755168175341,0.07553,121320.0,121310.0,1.11506881]
[1755168175544,0.11063,121320.0,121310.0,0.17554881]
[1755168175847,0.11063,121320.0,121310.0,0.6547653]
[1755168176045,0.10527211,121320.0,121310.0,0.17754881]
[1755168176244,0.10527211,121320.0,121310.0,1.12954881]
[1755168176648,0.10527211,121320.0,121310.0,0.17754881]
[1755168176837,0.10527211,121320.0,121310.0,1.6077653]
[1755168177041,0.10527211,121320.0,121310.0,1.14342838]
[1755168177250,0.54845831,121320.0,121310.0,0.02564718]
[1755168177546,0.46607211,121320.0,121310.0,0.10804028]
[1755168177846,0.43545211,121320.0,121310.0,0.58525677]
[1755168178046,0.46607211,121320.0,121310.0,0.58525677]
[1755168178453,0.46607211,121320.0,121310.0,1.06648028]
[1755168178639,0.46607211,121320.0,121310.0,0.58525677]
[1755168178842,0.46607211,121320.0,121310.0,0.10804028]
[1755168179042,0.46607211,121320.0,121310.0,1.05908028]
[1755168179445,0.46607211,121320.0,121310.0,0.10140028]
[1755168179639,0.46607211,121320.0,121310.0,1.06604028]
[1755168179845,0.46607211,121320.0,121310.0,1.54325677]
[1755168180045,0.46607211,121320.0,121310.0,1.06604028]
[1755168180246,0.46607211,121320.0,121310.0,0.10140028]
[1755168180445,0.46607211,121320.0,121310.0,0.01900718]
[1755168180644,0.46607211,121320.0,121310.0,0.10139968]
[1755168181142,0.54845781,121320.0,121310.0,0.01900718]
[1755168182453,1.0264743,121320.0,121310.0,0.01900718]
[1755168182750,0.21130093,121300.0,121290.0,0.07345336]
[1755168182951,0.11063,121290.0,121280.0,0.23928795]
[1755168183138,0.47143,121290.0,121280.0,0.23928795]
[1755168183541,0.46339161,121290.0,121280.0,1.22664795]
[1755168183746,0.46339161,121290.0,121280.0,0.28142948]
[1755168183948,0.46339161,121290.0,121280.0,1.26214948]
[1755168184449,0.44081,121290.0,121280.0,1.26214948]
[1755168184648,0.40571,121290.0,121280.0,1.18869612]
[1755168184846,0.44081,121290.0,121280.0,1.26908108]
[1755168185147,0.40571,121290.0,121280.0,0.08458108]
[1755168185347,0.44081,121290.0,121280.0,0.20347368]
[1755168185547,0.47143,121290.0,121280.0,0.12956872]
[1755168185750,0.47143,121290.0,121280.0,0.13356872]
[1755168185952,0.47143,121290.0,121280.0,0.20748039]
[1755168186450,0.5538357,121290.0,121280.0,0.09258779]
[1755168186744,0.5538357,121290.0,121280.0,0.10496658]
[1755168186955,1.03105219,121290.0,121280.0,0.03105491]
[1755168187147,0.0824125,121280.0,121270.0,0.10350777]
[1755168187347,0.0824125,121280.0,121260.0,0.02266588]
[1755168187348,0.1930493,121270.0,121260.0,0.02266588]
[1755168187554,0.4432193,121270.0,121260.0,0.02266588]
[1755168187753,0.3608,121290.0,121270.0,0.1946243]
[1755168187957,0.47143,121280.0,121270.0,0.1648336]
[1755168188148,0.11063,121270.0,121260.0,0.18751328]
[1755168188348,0.62127471,121270.0,121260.0,0.02266588]
[1755168188747,0.06742541,121270.0,121260.0,0.15561198]
[1755168188950,0.6080317,121290.0,121260.0,0.22130198]
[1755168189257,0.40571,121280.0,121270.0,0.002]
[1755168189462,0.4881225,121280.0,121270.0,0.002]
[1755168189654,0.8530345,121280.0,121270.0,0.002]
[1755168189953,0.8530345,121280.0,121260.0,0.22129798]
[1755168189954,0.04491,121270.0,121260.0,0.22129798]
[1755168190149,0.67265321,121280.0,121260.0,0.03066588]
[1755168190352,0.4881293,121270.0,121260.0,0.06587588]
[1755168190657,0.04491,121270.0,121260.0,0.58610198]
[1755168191063,0.10335,121270.0,121260.0,0.58210198]
[1755168191752,0.06460481,121280.0,121260.0,0.66532308]
[1755168191948,0.06460481,121280.0,121270.0,1.03164569]
[1755168192459,5.268e-05,121280.0,121270.0,1.7419892]
[1755168192758,5.268e-05,121280.0,121270.0,2.21920569]
[1755168192958,5.268e-05,121280.0,121270.0,2.21928569]
[1755168193258,0.00305268,121280.0,121270.0,1.3812692]
[1755168193560,0.00305268,121280.0,121270.0,1.03164569]
[1755168193760,0.00305268,121280.0,121270.0,0.5544292]
[1755168194272,0.00305268,121280.0,121270.0,2.21732569]
[1755168194456,0.00305268,121280.0,121270.0,0.5544292]
[1755168194853,0.00305268,121280.0,121270.0,1.7414292]
[1755168195052,0.00305268,121280.0,121270.0,2.21864569]
[1755168195452,0.00305268,121280.0,121270.0,1.65761]
[1755168195650,0.08059268,121280.0,121270.0,1.03164579]
[1755168195862,0.19362518,121280.0,121270.0,0.44253]
[1755168196160,0.1905793,121270.0,121260.0,0.49567588]
[1755168196363,0.1905793,121270.0,121260.0,1.68063588]
[1755168196562,0.1905793,121270.0,121260.0,1.78413419]
[1755168196764,0.1905793,121270.0,121260.0,1.78313419]
[1755168196966,0.1905793,121270.0,121260.0,1.67963588]
[1755168197264,0.1905793,121270.0,121260.0,1.78313419]
[1755168197663,0.1905793,121270.0,121260.0,0.23937419]
[1755168197960,0.5513793,121270.0,121260.0,0.02366588]
[1755168198152,1.1943238,121270.0,121260.0,0.12719578]
[1755168198357,0.71710731,121270.0,121260.0,0.12719578]
[1755168198551,0.71710731,121270.0,121240.0,0.16951472]
[1755168198552,0.0824328,121250.0,121240.0,0.16951472]
[1755168198851,0.55144548,121250.0,121240.0,0.06598482]
[1755168199059,0.90495141,121250.0,121240.0,0.07887167]
[1755168199368,0.75222,121250.0,121230.0,0.0824411]
[1755168199670,0.39142,121260.0,121250.0,0.11221]
[1755168199861,0.95111517,121260.0,121250.0,0.11221]
[1755168200180,5.268e-05,121260.0,121250.0,0.5554428]
[1755168200354,0.95191517,121260.0,121250.0,0.04652]
[1755168200558,0.1962949,121250.0,121240.0,0.04652]
[1755168200755,1.03812407,121250.0,121240.0,0.04852]
[1755168201060,0.2473554,121230.0,121210.0,0.23023691]
[1755168201266,0.47392588,121220.0,121210.0,0.27675691]
[1755168201462,0.39147268,121220.0,121210.0,0.31196691]
[1755168201663,5.268e-05,121220.0,121210.0,0.34244691]
[1755168201868,5.268e-05,121220.0,121210.0,1.52260691]
[1755168202556,5.268e-05,121220.0,121210.0,1.37319944]
[1755168202761,5.268e-05,121220.0,121210.0,1.37351944]
[1755168203066,5.268e-05,121220.0,121210.0,0.19471944]
[1755168203572,5.268e-05,121220.0,121210.0,1.18151256]
[1755168203769,0.00205268,121220.0,121210.0,2.36087256]
[1755168203969,0.00205268,121220.0,121210.0,0.70429607]
[1755168204177,0.00205268,121220.0,121210.0,1.18151256]
[1755168204472,0.00205268,121220.0,121210.0,2.21265593]
[1755168204674,0.36922752,121240.0,121230.0,0.0824463]
[1755168204876,0.3608,121250.0,121240.0,0.11705]
[1755168205262,0.3608,121250.0,121240.0,1.3762895]
[1755168205662,0.36257,121250.0,121240.0,1.3762895]
[1755168205975,0.95452919,121250.0,121240.0,0.08564]
[1755168206269,0.1165263,121230.0,121220.0,0.07021]
[1755168206479,0.1147631,121220.0,121210.0,0.07026014]
[1755168206665,0.03408,121220.0,121210.0,0.07026014]
[1755168206869,0.1165331,121220.0,121210.0,0.11710014]
[1755168207271,0.4773331,121220.0,121210.0,0.04689014]
[1755168207579,0.95454959,121220.0,121210.0,0.04689014]
[1755168207775,0.95830959,121220.0,121210.0,5.014e-05]
[1755168207974,0.95910959,121220.0,121210.0,5.014e-05]
[1755168208166,0.95830959,121220.0,121210.0,5.014e-05]
[1755168208371,0.95830959,121220.0,121190.0,0.14797663]
[1755168208372,0.1164967,121200.0,121190.0,0.14797663]
[1755168208568,0.03403,121190.0,121180.0,0.2862406]
[1755168208772,0.03403,121190.0,121180.0,0.3176506]
[1755168208974,0.1165035,121190.0,121180.0,0.07021]
[1755168209173,0.1165035,121190.0,121180.0,0.11705]
[1755168209374,0.10309708,121190.0,121180.0,0.11705]
[1755168209572,0.02062358,121190.0,121180.0,0.11705]
[1755168209773,0.02062358,121190.0,121180.0,0.30909571]
[1755168209974,0.4432667,121200.0,121190.0,0.03141]
[1755168210179,0.3608,121200.0,121190.0,0.17935452]
[1755168210371,0.4432667,121200.0,121190.0,0.17935452]
[1755168210568,0.4432667,121200.0,121190.0,0.26499452]
[1755168210769,0.3608,121200.0,121190.0,0.34746812]
[1755168210971,0.42635799,121200.0,121190.0,0.67674009]
[1755168211173,0.3608,121200.0,121190.0,0.1995236]
[1755168211772,0.5465201,121210.0,121200.0,0.04684]
[1755168211970,1.02373659,121210.0,121200.0,0.08564]
[1755168212181,0.5465201,121210.0,121200.0,0.08564]
[1755168212569,0.4640535,121210.0,121200.0,0.08564]
[1755168212772,0.02079,121210.0,121200.0,0.1995168]
[1755168212970,1.13186057,121220.0,121210.0,0.08564]
[1755168213378,1.13186057,121220.0,121210.0,0.08464]
[1755168213379,1.13286057,121220.0,121210.0,0.08464]
[1755168213573,1.13286057,121220.0,121210.0,0.04684]
[1755168213772,0.65564408,121220.0,121210.0,0.04684]
[1755168214283,0.72058436,121220.0,121210.0,0.04684]
[1755168214479,0.72634436,121220.0,121210.0,0.04684]
[1755168214872,1.20356085,121220.0,121210.0,0.04684]
[1755168215067,0.72258436,121220.0,121210.0,0.07825]
[1755168215477,0.72258436,121220.0,121210.0,0.11705]
[1755168215774,0.61933376,121220.0,121210.0,0.1995106]
[1755168215985,0.42774028,121220.0,121210.0,0.1995106]
[1755168216287,0.06894028,121220.0,121210.0,1.7275106]
[1755168217080,0.06694028,121220.0,121210.0,1.7275106]
[1755168217280,0.14939408,121220.0,121210.0,1.7275106]
[1755168217479,0.06494028,121220.0,121210.0,0.5603106]
[1755168217679,0.0824538,121220.0,121210.0,1.8898718]
[1755168217994,0.73957554,121230.0,121210.0,1.64129]
[1755168218171,0.72274935,121230.0,121220.0,0.08564]
[1755168218486,0.64029925,121230.0,121220.0,0.11705]
[1755168219480,0.28149925,121230.0,121220.0,0.11705]
[1755168219780,0.64329925,121230.0,121220.0,0.11705]
[1755168220584,0.53366451,121230.0,121220.0,0.11705]
[1755168221277,0.02555,121220.0,121210.0,0.04684]
[1755168221478,0.4688038,121220.0,121210.0,1.20236]
[1755168221777,0.4650438,121220.0,121210.0,1.24116]
[1755168221972,0.4650438,121220.0,121210.0,0.08564]
[1755168222579,0.6299593,121220.0,121210.0,0.04684]
[1755168222770,0.5475012,121220.0,121210.0,0.08564]
[1755168223176,0.5485012,121220.0,121210.0,0.08564]
[1755168224380,0.1080106,121210.0,121200.0,1.55964]
[1755168224575,0.4688106,121210.0,121200.0,1.19548]
[1755168224777,0.38259,121210.0,121200.0,1.2779474]
[1755168225075,0.38259,121210.0,121200.0,1.3476374]
[1755168225280,0.4650506,121210.0,121200.0,1.26517]
[1755168225484,0.38259,121210.0,121200.0,1.2774274]
[1755168225687,0.38259,121210.0,121200.0,1.3162274]
[1755168225983,0.4650507,121210.0,121200.0,1.23376]
[1755168226287,0.4650507,121210.0,121200.0,1.23476]
[1755168226485,0.38259,121210.0,121200.0,1.2784275]
[1755168226979,0.38259,121210.0,121200.0,1.3486375]
[1755168227171,0.3608,121210.0,121200.0,0.2005175]
[1755168227373,0.55532304,121230.0,121220.0,0.11705]
[1755168227582,0.53066451,121230.0,121220.0,0.11705]
[1755168228080,0.61311421,121230.0,121210.0,0.4432543]
[1755168228288,0.1042438,121220.0,121210.0,0.40764]
[1755168228485,0.02179,121220.0,121210.0,0.1681007]
[1755168228679,0.02179,121220.0,121210.0,0.1995107]
[1755168229381,0.02179,121220.0,121210.0,0.1293007]
[1755168229881,0.02179,121220.0,121210.0,0.1681007]
[1755168230181,0.02179,121220.0,121210.0,0.1995107]
[1755168230585,0.002,121220.0,121210.0,0.5603107]
[1755168231092,0.02279,121220.0,121210.0,0.1995107]
[1755168233684,0.02279,121220.0,121210.0,0.21240351]
[1755168234183,0.86080649,121220.0,121210.0,0.12994281]
[1755168234396,0.38359,121220.0,121210.0,0.21240381]